Cogmind - Beta 13 @@@ ROGUE MODE // 2024.04.27 @ 20:34:29 Player: opaguck Result: Destroyed by G-47 Trooper with Particle Gun Performance ------------- Evolutions (0) 0 Regions Visited (1) 200 Robots Destroyed (8) 40 Value Destroyed (190) 190 Prototype IDs (0) 0 Alien Tech Used (0) 0 Bonus (0) 0 TOTAL SCORE: 430 Bonus ------- None Cogmind --------- Core Integrity 0/250 Matter 36/300 Energy 100/100 System Corruption 0% Temperature Cool (27) Movement Core (100) Ox1 Location -10/Materials Parts ------- > --- POWER (1) -------- (None) > --- PROPULSION (2) --- (None) > --- UTILITY (2) ------ Small Storage Unit Seismic Detector > --- WEAPON (2) ------- (None) > --- INVENTORY (8) ---- Datajack Peak State ------------ > --- POWER ------------ Ion Engine > --- PROPULSION ------- Improved Hover Unit Improved Hover Unit > --- UTILITY ---------- Small Storage Unit Light Armor Plating > --- WEAPON ----------- Datajack > --- INVENTORY -------- Improved Hover Unit Improved Hover Unit [Rating: 8] Favorites ----------- Power Ion Engine Engine Ion Engine Propulsion Improved Hover Unit Leg Aluminum Leg Hover Unit Improved Hover Unit Utility Small Storage Unit Device Seismic Detector Storage Small Storage Unit Protection Light Armor Plating Weapon Grenade Launcher Launcher Grenade Launcher Special Melee Weapon Datajack Build | -11 -10 ------- Run | Yrd Mat Slots Evolved . | . . Power . | . . Propulsion . | . . Utility . | . . Weapon . | . . Parts Attached 13 | 4 9 Power 1 | 1 . Engine 1 | 1 . Core . | . . Reactor . | . . Propulsion 6 | 2 4 Treads . | . . Leg 2 | 2 . Wheel . | . . Hover 4 | . 4 Flight . | . . Utility 3 | 1 2 Device 1 | . 1 Storage 1 | 1 . Processor . | . . Hackware . | . . Protection 1 | . 1 Artifact . | . . Weapon 3 | . 3 Energy Gun . | . . Energy Cannon . | . . Ballistic Gun . | . . Ballistic Cannon . | . . Launcher 2 | . 2 Special Weapon . | . . Impact Weapon . | . . Slashing Weapon . | . . Piercing Weapon . | . . Special Melee Weapon 1 | . 1 Unidentified Prototypes . | . . Parts Lost 8 | . 8 Power 1 | . 1 Propulsion 4 | . 4 Utility 1 | . 1 Weapon 2 | . 2 Highest Loss Streak 5 | . 5 To Critical Strikes . | . . Average Slot Usage (%) 64 | . 64 Engine 13 | . 13 Leg 7 | . 7 Hover 15 | . 15 Device 1 | . 1 Storage 14 | . 14 Protection 5 | . 5 Launcher 5 | . 5 Special Melee Weapon 1 | . 1 Naked Turns . | . . Heaviest Build 16 | 10 16 Greatest Support 20 | 20 20 Greatest Overweight (x) 3 | . 3 Average Overweight (x) . | . . Largest Inventory Capacity 8 | 8 8 Average Capacity 7 | 7 8 Most Carried 3 | . 3 Average Carried 1 | . 1 Final Capacity 8 | 8 8 Final Carried 1 | . 1 Class Distribution -------------------- 100% | Mutant Dominant Class ---------------- Mutant | -10/Materials Resources | -11 -10 ----------- Run | Yrd Mat Matter Collected 141 | 131 10 Remotely . | . . Salvage Created 180 | . 180 Parts 12 | . 12 Haulers Intercepted . | . . Recyclers Shooed . | . . Parts Field Recycled . | . . Retrieved Matter . | . . Parts Self-Destructed . | . . Prevented . | . . Kills | -11 -10 ------- Run | Yrd Mat Combat Hostiles Destroyed 5 | . 5 AOE 5 | . 5 Classes Destroyed 3 | . 3 Worker 2 | . 2 Builder 1 | . 1 Grunt 5 | . 5 Best Kill Streak 5 | . 5 Combat Bots Only 4 | . 4 Max Kills in Single Turn 3 | . 3 Gunslinging . | . . Exploded 2 | . 2 Melee . | . . Uniques/NPCs Destroyed . | . . Combat | -11 -10 -------- Run | Yrd Mat Hostile Shots Fired 78 | . 78 Missed 26 | . 26 Damage Taken 726 | . 726 Core 266 | . 266 Absorbed by Shields . | . . Core Remaining (%) 100 | 100 . Volleys Fired 12 | . 12 Largest 1 | . 1 Hottest 30 | . 30 Shots Fired 12 | . 12 Gun . | . . Cannon . | . . Launcher 12 | . 12 Special . | . . Kinetic . | . . Thermal . | . . Explosive 12 | . 12 Electromagnetic . | . . Robot Hit Streak 3 | . 3 Robot Miss Streak 2 | . 2 Penetration Max . | . . Secondary Targets . | . . Shots Hit Robots 4 | . 4 Core Hits 16 | . 16 Critical Kills . | . . Critical Parts Destroyed . | . . Critical Strikes . | . . Melee Attacks . | . . Impact . | . . Slashing . | . . Piercing . | . . Sneak Attacks . | . . Combat Hostiles . | . . Follow-up Attacks . | . . Damage Inflicted 758 | . 758 Guns . | . . Cannons . | . . Explosions 751 | . 751 Melee . | . . Ramming 7 | . 7 Kinetic . | . . Thermal . | . . Explosive 751 | . 751 Electromagnetic . | . . Impact . | . . Slashing . | . . Piercing . | . . Highest Corruption . | . . Average Corruption . | . . Corruption Purged . | . . Corruption Blocked . | . . Overload Shots . | . . Overflow Damage . | . . Projectiles . | . . Explosions . | . . Melee . | . . Knockbacks . | . . Impact . | . . Kinetic . | . . Secondary . | . . Self-Inflicted Damage 3 | . 3 Shots . | . . Rammed 1 | . 1 Targets Rammed 1 | . 1 Kicked . | . . Crushed . | . . Highest Temperature 55 | . 55 Average Temperature 22 | . 22 Received Heat Transfer 438 | . 438 Siege Activations . | . . Robots Corrupted . | . . Combat Hostiles . | . . Parts Fried . | . . Impact Corruptions . | . . Robots Melted . | . . Combat Hostiles . | . . Parts Melted . | . . Heat Transferred . | . . Parts Sabotaged . | . . Parts Stolen . | . . Parts Stripped . | . . Power Chain Reactions . | . . Alert | -11 -10 ------- Run | Yrd Mat Peak Influence 173 | . 173 Initial . | . . Average 56 | . 63 Maximum Alert Level . | . . Low Security (%) 100 | 100 100 Level 1 . | . . Level 2 . | . . Level 3 . | . . Level 4 . | . . Level 5 . | . . High Security . | . . Max Security . | . . Squads Dispatched . | . . Investigation . | . . Extermination . | . . Reinforcement . | . . Assault . | . . Garrison . | . . Intercept . | . . Searches Triggered . | . . Construction Impeded . | . . Haulers Reinforced . | . . Active Scanning Responses . | . . Cargo Convoy Interrupts . | . . Stealth | -11 -10 --------- Run | Yrd Mat Distress Signals 1 | . 1 Communications Jammed . | . . Distress Signals . | . . Times Spotted 12 | . 12 Peak Tracking Total 4 | . 4 Tactical Retreats 1 | . 1 Traps | -11 -10 ------- Run | Yrd Mat Traps Triggered . | . . Indirectly . | . . Trap Hack Attempts . | . . Triggered . | . . Disarmed . | . . Reprogrammed . | . . Reused . | . . Traps Extracted . | . . Installed . | . . Triggered . | . . Machines | -11 -10 ---------- Run | Yrd Mat Machines Disabled . | . . Max in Single Turn . | . . Machines Repaired . | . . Machines Dismantled . | . . Machines Sabotaged . | . . Overloaded Fab Kills . | . . Hacking | -11 -10 --------- Run | Yrd Mat Machines Accessed 1 | . 1 Terminals 1 | . 1 Fabricators . | . . Repair Stations . | . . Recycling Units . | . . Scanalyzers . | . . Garrison Access . | . . Total Hacks 2 | . 2 Successful 2 | . 2 Failed . | . . Catastrophic . | . . Database Lockouts . | . . Manual . | . . Terminals 2 | . 2 Fabricators . | . . Repair Stations . | . . Recycling Units . | . . Scanalyzers . | . . Garrison Access . | . . Terminal Hacks 2 | . 2 Patrol Status 1 | . 1 Hauler Manifests 1 | . 1 Fabricator Hacks . | . . Repair Station Hacks . | . . Recycling Unit Hacks . | . . Scanalyzer . | . . Garrison Access Hacks . | . . Unauthorized Hacks . | . . Terminals . | . . Fabricators . | . . Repair Stations . | . . Recycling Units . | . . Scanalyzers . | . . Garrison Access . | . . Data Cores Recovered . | . . Used . | . . Hacking Detections 1 | . 1 Full Trace Events . | . . Feedback Events . | . . Feedback Blocked . | . . Robot Schematics Acquired . | . . Robots Built . | . . Authchips . | . . Time . | . . Total Robot Build Rating . | . . Part Schematics Acquired . | . . Parts Built . | . . Authchips . | . . Time . | . . Total Part Build Rating . | . . Parts Repaired . | . . Time . | . . Parts Recycled . | . . Recycled Matter . | . . Retrieved Matter . | . . Retrieved Components . | . . Parts Scanalyzed . | . . Part Schematics Acquired . | . . Parts Damaged . | . . Bothacking | -11 -10 ------------ Run | Yrd Mat Used RIF Installer . | . . Robots Hacked . | . . Non-combat . | . . Combat . | . . Robot Hacks Applied . | . . Relay Couplers Released . | . . Fabnet Peak Effective % . | . . Robots Rewired . | . . Allies Hacked . | . . Hacks Repelled . | . . Allies | -11 -10 -------- Run | Yrd Mat Total Allies . | . . Largest Group . | . . Highest-Rated Group . | . . Highest-Rated Ally . | . . Total Orders . | . . Ally Attacks . | . . Total Damage . | . . Kills . | . . Allies Corrupted . | . . Allies Melted . | . . Intel | -11 -10 ------- Run | Yrd Mat Robot Analysis Total . | . . Derelict Logs Recovered . | . . Drone Launches . | . . Drone Recoveries . | . . Exploration | -11 -10 ------------- Run | Yrd Mat Turns Passed 341 | 40 301 Spaces Moved 263 | 32 231 Core 19 | 5 14 Treads . | . . Legs 70 | 27 43 Wheels . | . . Hover 174 | . 174 Flight . | . . Fastest Speed 50 | 50 56 Average Speed 100 | 109 99 Slowest Speed 200 | 120 200 Overloaded Moves . | . . Propulsion Burnouts . | . . Robots Hopped . | . . Cave-ins Triggered . | . . Exploration Rate (%) 18 | 3 34 Regions Visited 1 Branch Regions . Pre-discovered Areas . | . . Known Exits Taken . | . . Unknown Exits Taken 1 | 1 . Scrap Searched . | . . Spaces Dug 6 | . 6 Terrain Destroyed 62 | . 62 Melee . | . . Projectile . | . . AOE 62 | . 62 Terrain Rammed . | . . Walls Destroyed . | . . Machines Disabled . | . . Actions | -11 -10 --------- Run | Yrd Mat Total 322 | 35 287 Wait 28 | . 28 Move 262 | 31 231 Hop . | . . Pick Up 4 | . 4 Fast Attach 9 | 4 5 Attach 3 | . 3 Detach . | . . Swap 1 | . 1 Drop 2 | . 2 Fire 12 | . 12 Melee . | . . Ram 1 | . 1 Kick . | . . Crush . | . . Escape Stasis . | . . Rewire . | . . Trap . | . . Miscellaneous . | . . Route ------- -11/Scrapyard -10/Materials History --------- Turn | Location | Event 3 | -11/Scrapyard | Discovered new exit (range 15) 41 | -11/Scrapyard | Entered Materials 304 | -10/Materials | Lost 5 parts (3n1u1w) 329 | -10/Materials | Core integrity fell below 50% 337 | -10/Materials | Core integrity fell below 20% 340 | -10/Materials | Build established: Mutant 342 | -10/Materials | Destroyed by G-47 Trooper with Particle Gun Last Messages --------------- 00264_ Acquired Grenade Launcher. 00265_ Imp. Hover Unit destroyed. 00266_ The unstable cave ceiling collapses. 00268_ U-05 Engineer lays Concrete. 00270_ Slammed into U-05 Engineer. 00271_ The unstable cave ceiling collapses. 00271_ U-05 Engineer lays Concrete. 00272_ U-05 Engineer builds a Wall. 00272_ U-05 Engineer lays Concrete. 00273_ Grenade Launcher destroyed. 00274_ U-05 Engineer lays Concrete. 00275_ U-05 Engineer builds a Wall. 00286_ T-07 Excavator is excavating. 00311_ Acquired Seismic Detector. 00322_ Grenade Launcher destroyed. 00325_ Imp. Hover Unit destroyed. 00329_ Ion Engine destroyed. 00339_ T-07 Excavator is excavating. 00340_ K-01 Serf cleans the Processing Tank. 00342_ Critical hit (Burn: +37). Map ----- +----------------------------------------------------+ | ???????????????????????????????????????????????? | | ???????????????????????????????????????????????? | | ???????????????????????????????????????????????? | | ???????????????????????????????????????????????? | | ???????????????????????????????????????????????? | | ???????????????????????????????????????????????? | | ???????????????????????????????????????????????? | | ???????????????????????????????????????????????? | | ???????????????????????????????????????????????? | | ???????????????????????????????????????????????? | | ???????????????????????????????????????????????? | | ???????????????????????????????????????????????? | | ?????????????????????????????????????????#?????? | | ???????????????????????????????????????? #?????? | | ????????????????????????###????????????? #?????? | | ???????????????????????? #???????????? #?????? | | ????????????????????????t #??????????? #?????? | | ??????????????????? ??## ???????????? #?????? | | ??????????????????? ?# ??????????? #??????? | | ?????????????????# ### ############ #??????? | | ?????????????????? #??????? | | ?????????????????????# k #????### | | ???????????????####### """"" #????# | | ???????????????# ##^ """"" ###+########### | | ???????????????# "" ## """"" # + | | ???????????????# "Y # @ # ####### | | ???????????????# "" # # """ !#?????#### | | ???????????????# # g " # "R #????????# | | ???????????????# # T # """ #????????# | | ???????????????# #g " # #????????# | | ???????????????# ########????????? | | ???????????????# ] #???????????????? | | ???????????????##### g # #???????????????? | | ????????????????# #######???????????????? | | ????????????????# ######????????????????? | | ????????????????#[[[ #== #???###########??? | | ????????????????#[[ """ # #???# T #??? | | ????????????????#[[ """ ##!! #???# !#??? | | ????????????????# """ ##!! ##### #??? | | ????????????????# ##!! + #??? | | ????????????????# ##!! ### """ """ #??? | | ????????????????############### #?# """ """ #??? | | ?????????????????????# # #?# """ """ #??? | | ?????????????????????# """ # #?# #??? | | ?????????????????????# """ ]# #######+######## | | ?????????????????????# """ # ^ | | ?????????????????????# + | | ?????????????????????#/!! # ^ | | ?????????????????????#/!] ################## | | ?????????????????????# #????????????????? | +----------------------------------------------------+ Best States ------------- Heat Dissipation 25 Energy Generation 10 Energy Capacity 250 Matter Stores 191 Matter Capacity 300 Sight Range 16 Terrain Scan Density 10 Armor Coverage 150 Evasion (%) 55 Item Schematics ----------------- None Robot Schematics ------------------ None Fabricated ------------ Nothing Alien Tech Used ----------------- None Achievements -------------- None Challenges ------------ None Game ------ Seed AbsorptionMappingField Manual? 0 Play Time 00:04:16 Cumulative 19.6 hours Start 2024.04.27 @ 20:30:11 End 2024.04.27 @ 20:34:29 Sessions 1 Manual Loads 0 Difficulty Rogue Special Mode None Game No. 30 Rogue 30 Adventurer 0 Explorer 0 Win Type - Total 0 Types 0/0/0/0/0/0/0/0/0 Lore% 23 Gallery% 25 Achievement% 20 Wizard Run 0 Options --------- Layout 1 ASCII 0 Keyboard 0 Movement Numpad Keybinds 0 Fullscreen 2 Font 24/Smallcaps Map View 50x35 Zoom Use 0% Tactical HUD 1 Map Filters NONE Filters NONE Steam 1 RUN: 2b66a069-a738-456d-ab9f-774a4ec40f4b